[Event "RUS-chTW Premier 2019"]
[Site "Sochi"]
[Date "2019.05.07"]
[Round "6.1"]
[White "Ovod, Evgenija"]
[Black "Nasybullina, Alfia"]
[Result "1/2-1/2"]
[ECO "B12"]
[WhiteElo "2362"]
[BlackElo "2065"]
[Annotator "NA"]
[PlyCount "128"]
[EventDate "2019.05.01"]
[EventType "team-tourn"]
[EventCountry "RUS"]
[SourceTitle "playchess.com"]
[Source "ChessBase"]
[SourceQuality "1"]
[TimeControl "40/5400+30:1800+30"]

1. e4 {[%emt 0:00:00]} c6 {[%emt 0:00:00]} 2. d4 {[%emt 0:00:00]} d5 {[%emt 0:00:00]} 3. e5 {[%emt 0:00:00]} c5 {[%emt 0:00:06]} 4. dxc5 {[%emt 0:00:00]} Nc6 {[%emt 0:00:03]} 5. f4 {[%emt 0:00:03]} e6 {[%emt 0:00:27]} 6. Be3 {[%emt 0:00:09]} Nge7 {[%emt 0:04:11]} 7. Nd2 {[%emt 0:12:19]} g5 {[%emt 0:11:17]} 8. fxg5 {[%emt 0:06:54]} Nf5 {[%emt 0:03:54]} 9. Bf2 {[%emt 0:07:11]} Nxe5 {[%emt 0:02:02]} 10. g4 {[%emt 0:05:42]} Ne7 {[%emt 0:02:06]} 11. Qe2 {[%emt 0:02:18]} N7c6 {[%emt 0:02:44]} 12. h4 {[%emt 0:08:21]} Qa5 {[%emt 0:06:23]} 13. Ngf3 {[%emt 0:11:56]} Nxf3+ {[%emt 0:18:34]} 14. Qxf3 {[%emt 0:00:04]} Bd7 {[%emt 0:04:28]} 15. c3 {[%emt 0:07:28]} Bxc5 {[%emt 0:01:08]} 16. Nb3 {[%emt 0:02:38]} Bxf2+ {[%emt 0:01:44]} 17. Qxf2 {[%emt 0:00:02]} Qc7 {[%emt 0:02:35]} 18. O-O-O {[%emt 0:00:57]} O-O-O {[%emt 0:01:00]} 19. Bg2 {[%emt 0:01:55]} Kb8 {[%emt 0:01:16]} 20. Kb1 {[%emt 0:01:26]} Ne5 {[%emt 0:01:21]} 21. Rd4 {[%emt 0:03:29]} Bb5 {[%emt 0:01:50]} 22. Nc1 {[%emt 0:03:42]} Rhf8 {[%emt 0:02:56]} 23. Re1 {[%emt 0:06:16]} Nc6 {[%emt 0:01:52]} 24. Rf4 {[%emt 0:00:17]} e5 {[%emt 0:11:33]} 25. Rf5 {[%emt 0:00:12]} Ba6 {[%emt 0:04:43]} 26. Rd1 {[%emt 0:04:57]} b6 {[%emt 0:05:33]} 27. Rxd5 {[%emt 0:01:04]} Bc8 {[%emt 0:00:20]} 28. Rxd8 {[%emt 0:00:40]} Nxd8 {[%emt 0:00:40]} 29. Rf6 {[%emt 0:00:35]} Bxg4 {[%emt 0:01:18]} 30. Be4 {[%emt 0:00:39]} Be6 {[%emt 0:01:36]} 31. Bxh7 {[%emt 0:01:17]} Rh8 {[%emt 0:00:07]} 32. g6 {[%emt 0:02:00]} fxg6 {[%emt 0:00:22]} 33. Bxg6 {[%emt 0:00:04]} Qe7 {[%emt 0:02:53]} 34. Nd3 {[%emt 0:04:22]} Bc8 {[%emt 0:02:32]} 35. Be4 {[%emt 0:02:07]} Bb7 {[%emt 0:01:13]} 36. Bxb7 {[%emt 0:01:35]} Qxb7 {[%emt 0:00:38]} 37. Qg3 {[%emt 0:02:00]} Qe4 {[%emt 0:01:25]} 38. Qxe5+ {[%emt 0:00:50]} Qxe5 {[%emt 0:00:05]} 39. Nxe5 {[%emt 0:00:04]} Rxh4 {[%emt 0:00:20]} 40. Rd6 {[%emt 0:00:00]} Kc8 {[%emt 0:00:00]} 41. Kc2 {[%emt 0:03:02]} Re4 {[%emt 0:03:48]} 42. Nd3 {[%emt 0:01:05]} Nb7 {[%emt 0:00:49]} 43. Rc6+ {[%emt 0:02:25]} Kd7 {[%emt 0:00:21]} 44. Rh6 {[%emt 0:02:26]} Re7 {[%emt 0:02:09]} 45. c4 {[%emt 0:02:47]} Nd6 {[%emt 0:01:24]} 46. Kc3 {[%emt 0:00:16]} Kc7 {[%emt 0:02:42]} 47. b4 {[%emt 0:00:46]} Rd7 {[%emt 0:02:21]} 48. Re6 {[%emt 0:02:00]} Nb7 {[%emt 0:00:14]} 49. Ne5 {[%emt 0:01:44]} Rh7 {[%emt 0:04:12]} 50. Rc6+ {[%emt 0:01:13]} Kb8 {[%emt 0:00:07]} 51. Rf6 {[%emt 0:05:43]} Nd8 {[%emt 0:02:43]} 52. c5 {[%emt 0:02:45]} bxc5 {[%emt 0:00:27]} 53. bxc5 {[%emt 0:00:05]} Rh1 {[%emt 0:02:03]} 54. Rg6 {[%emt 0:03:13]} Rc1+ {[%emt 0:01:03]} 55. Kd4 {[%emt 0:03:13]} Rd1+ {[%emt 0:00:22]} 56. Nd3 {[%emt 0:00:29]} Rd2 {[%emt 0:02:30]} 57. a3 {[%emt 0:03:04]} Ra2 {[%emt 0:01:32]} 58. Rg8 {[%emt 0:00:13]} Kc7 {[%emt 0:00:24]} 59. Rg7+ {[%emt 0:00:13]} Kc8 {[%emt 0:00:52]} 60. Kc4 {[%emt 0:04:02]} Rxa3 {[%emt 0:00:19]} 61. Nb4 {[%emt 0:00:08]} Ra1 {[%emt 0:02:14]} 62. Kb5 {[%emt 0:01:13]} Rb1 {[%emt 0:01:43]} 63. Rxa7 {[%emt 0:01:11]} Rxb4+ {[%emt 0:00:07]} 64. Kxb4 {[%emt 0:00:08]} Nc6+ 1/2-1/2

[Event "RUS-chTW Premier 2019"]
[Site "Sochi"]
[Date "2019.05.07"]
[Round "6.2"]
[White "Mukhina, Jana"]
[Black "Belenkaya, Dina"]
[Result "0-1"]
[ECO "B19"]
[WhiteElo "2098"]
[BlackElo "2315"]
[Annotator "NA"]
[PlyCount "114"]
[EventDate "2019.05.01"]
[EventType "team-tourn"]
[EventCountry "RUS"]
[SourceTitle "playchess.com"]
[Source "ChessBase"]
[SourceQuality "1"]
[TimeControl "40/5400+30:1800+30"]

1. e4 {[%emt 0:00:00]} c6 {[%emt 0:00:00]} 2. d4 {[%emt 0:00:00]} d5 {[%emt 0:00:00]} 3. Nc3 {[%emt 0:00:00]} dxe4 {[%emt 0:00:00]} 4. Nxe4 {[%emt 0:00:00]} Bf5 {[%emt 0:00:00]} 5. Ng3 {[%emt 0:00:09]} Bg6 {[%emt 0:00:06]} 6. h4 {[%emt 0:00:15]} h6 {[%emt 0:00:04]} 7. Nf3 {[%emt 0:00:07]} Nd7 {[%emt 0:00:03]} 8. h5 {[%emt 0:00:06]} Bh7 {[%emt 0:00:05]} 9. Bd3 {[%emt 0:00:07]} Bxd3 {[%emt 0:00:08]} 10. Qxd3 {[%emt 0:00:07]} e6 {[%emt 0:00:06]} 11. Bd2 {[%emt 0:00:04]} Ngf6 {[%emt 0:00:08]} 12. O-O-O {[%emt 0:00:12]} Be7 {[%emt 0:00:03]} 13. Kb1 {[%emt 0:00:07]} Qb6 {[%emt 0:00:05]} 14. c4 {[%emt 0:00:41]} Rd8 {[%emt 0:00:39]} 15. Qc2 {[%emt 0:02:40]} O-O {[%emt 0:08:04]} 16. Bf4 {[%emt 0:00:07]} Rfe8 {[%emt 0:06:50]} 17. Ne5 {[%emt 0:00:22]} Nf8 {[%emt 0:07:30]} 18. c5 {[%emt 0:29:23]} Qa6 {[%emt 0:09:39]} 19. Rd3 {[%emt 0:12:58]} Nd5 {[%emt 0:13:45]} 20. Bd2 {[%emt 0:03:20]} b5 {[%emt 0:03:54]} 21. Ne4 {[%emt 0:21:35]} f5 {[%emt 0:04:38]} 22. Ng3 {[%emt 0:18:31]} Nh7 {[%emt 0:03:48]} 23. Ne2 {[%emt 0:03:52]} Bf6 {[%emt 0:02:29]} 24. f4 {[%emt 0:04:01]} Re7 {[%emt 0:06:47]} 25. g4 {[%emt 0:00:37]} Bxe5 {[%emt 0:01:58]} 26. fxe5 {[%emt 0:01:16]} Rf7 {[%emt 0:02:45]} 27. gxf5 {[%emt 0:00:37]} exf5 {[%emt 0:07:16]} 28. Rf3 {[%emt 0:01:22]} Qc8 {[%emt 0:02:03]} 29. Rg1 {[%emt 0:01:03]} Kh8 {[%emt 0:00:11]} 30. Rg6 {[%emt 0:00:25]} Nf8 {[%emt 0:01:31]} 31. Rg1 {[%emt 0:00:41]} Ne7 {[%emt 0:01:58]} 32. Ba5 {[%emt 0:00:38]} Rd5 {[%emt 0:02:42]} 33. Rgf1 {[%emt 0:00:34]} Ne6 {[%emt 0:00:23]} 34. Qd2 {[%emt 0:00:15]} Qd7 {[%emt 0:03:51]} 35. Rd1 {[%emt 0:00:43]} Rf8 {[%emt 0:00:56]} 36. Rd3 {[%emt 0:00:17]} Qe8 {[%emt 0:00:58]} 37. Rh1 {[%emt 0:00:26]} Rd7 {[%emt 0:03:00]} 38. Nf4 {[%emt 0:00:46]} Nxf4 {[%emt 0:00:57]} 39. Qxf4 {[%emt 0:00:01]} Nd5 {[%emt 0:00:35]} 40. Qf3 {[%emt 0:00:00]} f4 {[%emt 0:00:00]} 41. Rg1 {[%emt 0:06:16]} Qf7 {[%emt 0:16:56]} 42. Rg6 {[%emt 0:04:16]} Qf5 {[%emt 0:00:30]} 43. Kc1 {[%emt 0:08:53]} Ne3 {[%emt 0:00:43]} 44. Rxe3 {[%emt 0:03:06]} fxe3 {[%emt 0:00:06]} 45. Qxf5 {[%emt 0:00:04]} Rxf5 {[%emt 0:00:07]} 46. Rd6 {[%emt 0:02:33]} Rdf7 {[%emt 0:07:00]} 47. e6 {[%emt 0:02:15]} Re7 {[%emt 0:07:45]} 48. Rxc6 {[%emt 0:00:49]} Rxh5 {[%emt 0:03:20]} 49. Kd1 {[%emt 0:01:33]} g5 {[%emt 0:01:03]} 50. Ke2 {[%emt 0:04:26]} g4 {[%emt 0:00:35]} 51. Kxe3 {[%emt 0:00:45]} g3 {[%emt 0:00:35]} 52. Kf3 {[%emt 0:01:09]} Rg7 {[%emt 0:01:23]} 53. Kg2 {[%emt 0:01:24]} Rh2+ {[%emt 0:00:26]} 54. Kf3 {[%emt 0:00:35]} Rf2+ {[%emt 0:01:10]} 55. Ke3 {[%emt 0:00:13]} g2 {[%emt 0:00:53]} 56. e7 {[%emt 0:00:09]} g1=Q {[%emt 0:01:08]} 57. Rc8+ {[%emt 0:00:44]} Kh7 {[%emt 0:00:15]} 0-1

[Event "RUS-chTW Premier 2019"]
[Site "Sochi"]
[Date "2019.05.07"]
[Round "6.3"]
[White "Styazhkina, Anna"]
[Black "Mironenko, Galina"]
[Result "1-0"]
[ECO "C07"]
[WhiteElo "2272"]
[BlackElo "1901"]
[Annotator "NA"]
[PlyCount "69"]
[EventDate "2019.05.01"]
[EventType "team-tourn"]
[EventCountry "RUS"]
[SourceTitle "playchess.com"]
[Source "ChessBase"]
[SourceQuality "1"]
[TimeControl "40/5400+30:1800+30"]

1. e4 {[%emt 0:00:00]} e6 {[%emt 0:00:00]} 2. d4 {[%emt 0:00:00]} d5 {[%emt 0:00:00]} 3. Nd2 {[%emt 0:00:17]} c5 {[%emt 0:00:00]} 4. Ngf3 {[%emt 0:00:21]} cxd4 {[%emt 0:00:00]} 5. Nxd4 {[%emt 0:00:15]} Nc6 {[%emt 0:00:05]} 6. Bb5 {[%emt 0:00:13]} Bd7 {[%emt 0:00:05]} 7. Nxc6 {[%emt 0:00:20]} bxc6 {[%emt 0:00:05]} 8. Bd3 {[%emt 0:00:07]} Qc7 {[%emt 0:00:06]} 9. Qe2 {[%emt 0:01:56]} Ne7 {[%emt 0:00:08]} 10. Nf3 {[%emt 0:05:41]} Ng6 {[%emt 0:00:13]} 11. e5 {[%emt 0:01:51]} c5 {[%emt 0:00:37]} 12. c3 {[%emt 0:00:43]} Rb8 {[%emt 0:02:27]} 13. O-O {[%emt 0:17:37]} Be7 {[%emt 0:00:38]} 14. Re1 {[%emt 0:01:11]} Qb7 {[%emt 0:10:53]} 15. h4 {[%emt 0:07:35]} Bb5 {[%emt 0:03:59]} 16. h5 {[%emt 0:02:06]} Nf8 {[%emt 0:07:49]} 17. Nh2 {[%emt 0:10:02]} Nd7 {[%emt 0:07:28]} 18. b3 {[%emt 0:04:25]} Bxd3 {[%emt 0:11:13]} 19. Qxd3 {[%emt 0:00:15]} a5 {[%emt 0:01:57]} 20. Qg3 {[%emt 0:06:54]} g6 {[%emt 0:04:23]} 21. Qh3 {[%emt 0:00:28]} Qc6 {[%emt 0:05:13]} 22. Ng4 {[%emt 0:04:11]} Kd8 {[%emt 0:11:40]} 23. Bd2 {[%emt 0:05:07]} c4 {[%emt 0:05:46]} 24. bxc4 {[%emt 0:01:34]} dxc4 {[%emt 0:01:26]} 25. hxg6 {[%emt 0:12:33]} fxg6 {[%emt 0:00:23]} 26. Bh6 {[%emt 0:00:31]} Ba3 {[%emt 0:17:28]} 27. Bg7 {[%emt 0:05:07]} Rg8 {[%emt 0:01:07]} 28. Qxh7 {[%emt 0:00:40]} Kc7 {[%emt 0:00:13]} 29. Rad1 {[%emt 0:00:12]} g5 {[%emt 0:06:30]} 30. Nf6 {[%emt 0:02:24]} Nxf6 {[%emt 0:01:59]} 31. exf6 {[%emt 0:00:13]} Rgd8 {[%emt 0:01:07]} 32. Bf8+ {[%emt 0:00:32]} Rd7 {[%emt 0:00:13]} 33. Rxd7+ {[%emt 0:00:09]} Qxd7 {[%emt 0:00:05]} 34. Qxd7+ {[%emt 0:00:08]} Kxd7 {[%emt 0:00:03]} 35. Bxa3 {[%emt 0:00:07]} 1-0

[Event "RUS-chTW Premier 2019"]
[Site "Sochi"]
[Date "2019.05.07"]
[Round "6.4"]
[White "Filippova, Darya"]
[Black "Balaian, Alina"]
[Result "0-1"]
[ECO "E92"]
[WhiteElo "2070"]
[BlackElo "2250"]
[Annotator "NA"]
[PlyCount "94"]
[EventDate "2019.05.01"]
[EventType "team-tourn"]
[EventCountry "RUS"]
[SourceTitle "playchess.com"]
[Source "ChessBase"]
[SourceQuality "1"]
[TimeControl "40/5400+30:1800+30"]

1. c4 {[%emt 0:00:00]} Nf6 {[%emt 0:00:00]} 2. Nc3 {[%emt 0:00:00]} g6 {[%emt 0:00:00]} 3. d4 {[%emt 0:00:00]} Bg7 {[%emt 0:00:00]} 4. e4 {[%emt 0:00:02]} d6 {[%emt 0:00:00]} 5. Nf3 {[%emt 0:00:08]} O-O {[%emt 0:00:05]} 6. Be2 {[%emt 0:00:07]} e5 {[%emt 0:00:08]} 7. dxe5 {[%emt 0:00:23]} dxe5 {[%emt 0:00:04]} 8. Qxd8 {[%emt 0:00:12]} Rxd8 {[%emt 0:00:01]} 9. Bg5 {[%emt 0:00:17]} Re8 {[%emt 0:00:44]} 10. Nd5 {[%emt 0:00:19]} Nxd5 {[%emt 0:00:17]} 11. cxd5 {[%emt 0:00:14]} c6 {[%emt 0:00:23]} 12. Bc4 {[%emt 0:00:12]} cxd5 {[%emt 0:00:25]} 13. Bxd5 {[%emt 0:00:34]} Nd7 {[%emt 0:00:22]} 14. Rc1 {[%emt 0:17:01]} h6 {[%emt 0:03:26]} 15. Be3 {[%emt 0:12:16]} Nf6 {[%emt 0:00:32]} 16. Bb3 {[%emt 0:08:13]} Nxe4 {[%emt 0:15:42]} 17. Rc7 {[%emt 0:00:20]} Be6 {[%emt 0:00:12]} 18. Bxe6 {[%emt 0:01:04]} Rxe6 {[%emt 0:00:12]} 19. Rxb7 {[%emt 0:00:15]} Ra6 {[%emt 0:00:41]} 20. a3 {[%emt 0:04:38]} Nd6 {[%emt 0:02:01]} 21. Rb4 {[%emt 0:01:24]} Rc6 {[%emt 0:01:45]} 22. O-O {[%emt 0:03:48]} a5 {[%emt 0:02:28]} 23. Rb3 {[%emt 0:00:27]} Rac8 {[%emt 0:11:20]} 24. g3 {[%emt 0:04:27]} Nf5 {[%emt 0:04:30]} 25. g4 {[%emt 0:09:52]} Nd6 {[%emt 0:12:37]} 26. Rd1 {[%emt 0:02:45]} f5 {[%emt 0:01:22]} 27. Nh4 {[%emt 0:09:27]} fxg4 {[%emt 0:04:24]} 28. Rd5 {[%emt 0:07:19]} Nc4 {[%emt 0:04:18]} 29. Ba7 {[%emt 0:03:23]} Rf6 {[%emt 0:05:12]} 30. Rb7 {[%emt 0:02:22]} g5 {[%emt 0:00:55]} 31. Rdd7 {[%emt 0:00:31]} Bf8 {[%emt 0:00:13]} 32. Ng2 {[%emt 0:01:30]} Nd6 {[%emt 0:09:17]} 33. Rbc7 {[%emt 0:00:22]} Rxc7 {[%emt 0:01:34]} 34. Rxc7 {[%emt 0:00:03]} Nb5 {[%emt 0:09:08]} 35. Rd7 {[%emt 0:02:18]} Nxa7 {[%emt 0:02:12]} 36. Rxa7 {[%emt 0:00:08]} Rxf2 {[%emt 0:00:32]} 37. Kxf2 {[%emt 0:03:31]} Bc5+ {[%emt 0:00:20]} 38. Kg3 {[%emt 0:00:49]} Bxa7 {[%emt 0:00:06]} 39. Kxg4 {[%emt 0:01:34]} a4 {[%emt 0:00:59]} 40. Ne1 {[%emt 0:00:00]} Bd4 {[%emt 0:00:00]} 41. Nd3 {[%emt 0:06:46]} e4 {[%emt 0:01:29]} 42. Nb4 {[%emt 0:00:27]} Bxb2 {[%emt 0:00:14]} 43. Nd5 {[%emt 0:00:28]} Bxa3 {[%emt 0:03:33]} 44. Nc3 {[%emt 0:00:31]} Bd6 {[%emt 0:03:06]} 45. h4 {[%emt 0:00:18]} a3 {[%emt 0:00:28]} 46. hxg5 {[%emt 0:00:23]} hxg5 {[%emt 0:00:06]} 47. Na2 {[%emt 0:00:12]} Bf4 {[%emt 0:01:33]} 0-1

[Event "RUS-chTW Premier 2019"]
[Site "Sochi"]
[Date "2019.05.07"]
[Round "6.5"]
[White "Badelka, Olga"]
[Black "Ushenina, Anna"]
[Result "0-1"]
[ECO "A20"]
[WhiteElo "2383"]
[BlackElo "2442"]
[Annotator "NA"]
[PlyCount "84"]
[EventDate "2019.05.01"]
[EventType "team-tourn"]
[EventCountry "RUS"]
[SourceTitle "playchess.com"]
[Source "ChessBase"]
[SourceQuality "1"]
[TimeControl "40/5400+30:1800+30"]

1. c4 {[%emt 0:00:00]} e5 {[%emt 0:00:00]} 2. g3 {[%emt 0:00:00]} Nf6 {[%emt 0:00:08]} 3. Bg2 {[%emt 0:00:00]} d5 {[%emt 0:00:04]} 4. cxd5 {[%emt 0:00:00]} Nxd5 {[%emt 0:00:03]} 5. Nf3 {[%emt 0:00:14]} Nc6 {[%emt 0:00:28]} 6. O-O {[%emt 0:00:18]} Nb6 {[%emt 0:00:24]} 7. b3 {[%emt 0:00:19]} Be7 {[%emt 0:01:38]} 8. Bb2 {[%emt 0:00:13]} f6 {[%emt 0:00:09]} 9. Qc1 {[%emt 0:00:13]} O-O {[%emt 0:03:50]} 10. Rd1 {[%emt 0:00:15]} Qe8 {[%emt 0:12:20]} 11. d4 {[%emt 0:00:44]} exd4 {[%emt 0:17:39]} 12. Nxd4 {[%emt 0:00:12]} Nxd4 {[%emt 0:00:09]} 13. Bxd4 {[%emt 0:00:20]} c6 {[%emt 0:04:57]} 14. Nc3 {[%emt 0:01:28]} Be6 {[%emt 0:03:49]} 15. Qe3 {[%emt 0:07:17]} Ba3 {[%emt 0:12:34]} 16. Nb1 {[%emt 0:26:36]} Bb4 {[%emt 0:01:53]} 17. a3 {[%emt 0:00:32]} Ba5 {[%emt 0:00:21]} 18. Qd3 {[%emt 0:10:21]} Rd8 {[%emt 0:16:15]} 19. b4 {[%emt 0:10:29]} c5 {[%emt 0:00:13]} 20. bxa5 {[%emt 0:06:05]} Rxd4 {[%emt 0:01:30]} 21. Qc2 {[%emt 0:00:03]} Nc4 {[%emt 0:15:26]} 22. Nd2 {[%emt 0:06:58]} Nxa5 {[%emt 0:02:38]} 23. Qxc5 {[%emt 0:01:34]} Qd8 {[%emt 0:00:01]} 24. Qc2 {[%emt 0:01:32]} Qc8 {[%emt 0:00:17]} 25. Qxc8 {[%emt 0:08:58]} Rxc8 {[%emt 0:00:01]} 26. Ne4 {[%emt 0:00:15]} Rxd1+ {[%emt 0:00:17]} 27. Rxd1 {[%emt 0:00:02]} b6 {[%emt 0:00:27]} 28. f4 {[%emt 0:02:10]} Kf8 {[%emt 0:00:19]} 29. Kf2 {[%emt 0:01:16]} Ke7 {[%emt 0:00:24]} 30. Rd3 {[%emt 0:01:44]} Nc4 {[%emt 0:00:56]} 31. Ke1 {[%emt 0:03:38]} Nb2 {[%emt 0:02:35]} 32. Rd4 {[%emt 0:07:53]} Rc4 {[%emt 0:00:35]} 33. Rd2 {[%emt 0:00:44]} Rc1+ {[%emt 0:00:13]} 34. Kf2 {[%emt 0:00:03]} Nd1+ {[%emt 0:02:04]} 35. Ke1 {[%emt 0:03:40]} Ne3+ {[%emt 0:00:10]} 36. Kf2 {[%emt 0:00:02]} Ng4+ {[%emt 0:00:23]} 37. Kf3 {[%emt 0:00:03]} Nxh2+ {[%emt 0:00:10]} 38. Ke3 {[%emt 0:00:15]} Rg1 {[%emt 0:02:01]} 39. Bf3 {[%emt 0:01:43]} Nf1+ {[%emt 0:00:20]} 40. Kf2 {[%emt 0:00:00]} Nxd2 {[%emt 0:00:00]} 41. Kxg1 {[%emt 0:00:06]} Nb1 {[%emt 0:03:05]} 42. a4 {[%emt 0:02:36]} Bd7 {[%emt 0:02:44]} 0-1

[Event "RUS-chTW Premier 2019"]
[Site "Sochi"]
[Date "2019.05.07"]
[Round "6.6"]
[White "Pogonina, Natalija"]
[Black "Dordzhieva, Dinara"]
[Result "1/2-1/2"]
[ECO "E04"]
[WhiteElo "2453"]
[BlackElo "2280"]
[Annotator "ChessBase"]
[PlyCount "135"]
[EventDate "2019.05.01"]
[EventType "team-tourn"]
[EventCountry "RUS"]
[SourceTitle "playchess.com"]
[Source "ChessBase"]
[SourceQuality "1"]
[TimeControl "40/5400+30:1800+30"]

1. d4 {[%emt 0:00:00]} d5 {[%emt 0:00:00]} 2. c4 {[%emt 0:00:00]} e6 {[%emt 0:00:00]} 3. Nf3 {[%emt 0:00:03]} Nf6 {[%emt 0:00:00]} 4. g3 {[%emt 0:00:21]} dxc4 {[%emt 0:00:15]} 5. Bg2 {[%emt 0:00:22]} c6 {[%emt 0:00:10]} 6. O-O {[%emt 0:07:39]} b5 {[%emt 0:00:15]} 7. Ne5 {[%emt 0:01:59]} Bb7 {[%emt 0:00:10]} 8. a4 {[%emt 0:00:14]} Qc8 {[%emt 0:00:17]} 9. b3 {[%emt 0:07:25]} cxb3 {[%emt 0:01:26]} 10. Qxb3 {[%emt 0:00:13]} a6 {[%emt 0:00:48]} 11. Bg5 {[%emt 0:04:20]} Be7 {[%emt 0:05:07]} 12. Nd2 {[%emt 0:17:11]} O-O {[%emt 0:20:11]} 13. Rfc1 {[%emt 0:02:48]} Qd8 {[%emt 0:12:47]} 14. e3 {[%emt 0:06:29]} Nd5 {[%emt 0:10:58]} 15. Bxe7 {[%emt 0:03:51]} Qxe7 {[%emt 0:01:15]} 16. Ne4 {[%emt 0:00:56]} Nd7 {[%emt 0:13:56]} 17. Nxc6 {[%emt 0:10:59]} Bxc6 {[%emt 0:00:11]} 18. Rxc6 {[%emt 0:00:05]} bxa4 {[%emt 0:02:30]} 19. Qxa4 {[%emt 0:00:21]} a5 {[%emt 0:00:30]} 20. Nc3 {[%emt 0:07:54]} N7b6 {[%emt 0:07:31]} 21. Nxd5 {[%emt 0:02:00]} Nxd5 {[%emt 0:00:29]} 22. Rc5 {[%emt 0:01:28]} Rfd8 {[%emt 0:02:06]} 23. Rxa5 {[%emt 0:03:00]} Rxa5 {[%emt 0:01:46]} 24. Qxa5 {[%emt 0:00:06]} h6 {[%emt 0:00:02]} 25. Rc1 {[%emt 0:02:34]} Qd6 {[%emt 0:03:46]} 26. Qc5 {[%emt 0:05:41]} Qb8 {[%emt 0:01:05]} 27. h3 {[%emt 0:01:08]} Qb2 {[%emt 0:00:37]} 28. Qc2 {[%emt 0:01:39]} Qa3 {[%emt 0:01:31]} 29. Rb1 {[%emt 0:00:29]} Qe7 {[%emt 0:02:21]} 30. Rb5 {[%emt 0:01:23]} Qd7 {[%emt 0:01:39]} 31. Rc5 {[%emt 0:00:35]} g6 {[%emt 0:00:28]} 32. Bf3 {[%emt 0:01:25]} h5 {[%emt 0:00:33]} 33. h4 {[%emt 0:00:59]} Qd6 {[%emt 0:01:58]} 34. Kg2 {[%emt 0:00:54]} Kg7 {[%emt 0:00:04]} 35. Qc4 {[%emt 0:00:56]} Qd7 {[%emt 0:01:12]} 36. Qb5 {[%emt 0:01:45]} Qe7 {[%emt 0:00:46]} 37. Qc4 {[%emt 0:04:12]} Qd7 {[%emt 0:02:15]} 38. Qa6 {[%emt 0:01:10]} Qe7 {[%emt 0:00:32]} 39. Qa5 {[%emt 0:01:51]} Qd7 {[%emt 0:01:25]} 40. Qa6 {[%emt 0:00:00]} Qe7 {[%emt 0:00:00]} 41. Qa5 {[%emt 0:10:58]} Qd6 {[%emt 0:18:47]} 42. Bxd5 {[%emt 0:08:58]} exd5 {[%emt 0:00:12]} 43. Qc7 {[%emt 0:00:09]} Qxc7 {[%emt 0:05:50]} 44. Rxc7 {[%emt 0:00:05]} Kf6 {[%emt 0:00:02]} 45. Rc6+ {[%emt 0:07:20]} Ke7 {[%emt 0:00:30]} 46. Kf3 {[%emt 0:00:20]} Rb8 {[%emt 0:02:01]} 47. Kf4 {[%emt 0:00:52]} Rb2 {[%emt 0:00:19]} 48. f3 {[%emt 0:01:32]} Rf2 {[%emt 0:00:39]} 49. Ra6 {[%emt 0:01:01]} Rf1 {[%emt 0:00:25]} 50. Ra8 {[%emt 0:02:08]} Rf2 {[%emt 0:00:44]} 51. g4 {[%emt 0:00:56]} hxg4 {[%emt 0:00:29]} 52. Kxg4 {[%emt 0:00:04]} Rh2 {[%emt 0:01:07]} 53. e4 {[%emt 0:01:33]} dxe4 {[%emt 0:04:05]} 54. fxe4 {[%emt 0:00:05]} Re2 {[%emt 0:00:57]} 55. Kf4 {[%emt 0:00:23]} Rh2 {[%emt 0:00:40]} 56. Rh8 {[%emt 0:01:58]} Kf6 {[%emt 0:02:09]} 57. d5 {[%emt 0:00:26]} Kg7 {[%emt 0:01:03]} 58. Kg3 {[%emt 0:00:21]} Rd2 {[%emt 0:00:39]} 59. Re8 {[%emt 0:00:31]} f5 {[%emt 0:01:37]} 60. Re7+ {[%emt 0:01:06]} Kf8 {[%emt 0:01:57]} 61. Re5 {[%emt 0:01:01]} fxe4 {[%emt 0:01:04]} 62. Kf4 {[%emt 0:00:30]} Rh2 {[%emt 0:01:45]} 63. Kg5 {[%emt 0:00:42]} Kf7 {[%emt 0:00:43]} 64. Rxe4 {[%emt 0:00:21]} Rd2 {[%emt 0:00:03]} 65. Re5 {[%emt 0:00:42]} Rd4 {[%emt 0:00:03]} 66. h5 {[%emt 0:01:14]} gxh5 {[%emt 0:00:06]} 67. Rf5+ {[%emt 0:00:10]} Ke7 {[%emt 0:00:04]} 68. Kxh5 1/2-1/2

[Event "RUS-chTW Premier 2019"]
[Site "Sochi"]
[Date "2019.05.07"]
[Round "6.7"]
[White "Maltsevskaya, Aleksandra"]
[Black "Girya, Olga"]
[Result "1/2-1/2"]
[ECO "B11"]
[WhiteElo "2299"]
[BlackElo "2449"]
[Annotator "ChessBase"]
[PlyCount "106"]
[EventDate "2019.05.01"]
[EventType "team-tourn"]
[EventCountry "RUS"]
[SourceTitle "playchess.com"]
[Source "ChessBase"]
[SourceQuality "1"]
[TimeControl "40/5400+30:1800+30"]

1. e4 {[%emt 0:00:00]} c6 {[%emt 0:00:00]} 2. Nc3 {[%emt 0:00:00]} d5 {[%emt 0:00:00]} 3. Nf3 {[%emt 0:00:00]} Bg4 {[%emt 0:00:00]} 4. h3 {[%emt 0:00:00]} Bxf3 {[%emt 0:00:00]} 5. Qxf3 {[%emt 0:00:00]} Nf6 {[%emt 0:00:14]} 6. d3 {[%emt 0:00:52]} e6 {[%emt 0:00:12]} 7. g3 {[%emt 0:03:23]} Nbd7 {[%emt 0:06:28]} 8. Bg2 {[%emt 0:00:42]} Bc5 {[%emt 0:01:03]} 9. O-O {[%emt 0:00:45]} O-O {[%emt 0:00:30]} 10. g4 {[%emt 0:04:10]} b5 {[%emt 0:12:21]} 11. Kh1 {[%emt 0:13:35]} a5 {[%emt 0:18:52]} 12. Qg3 {[%emt 0:03:47]} a4 {[%emt 0:03:29]} 13. a3 {[%emt 0:23:27]} Kh8 {[%emt 0:03:11]} 14. f4 Qb8 15. e5 {[%emt 0:11:23]} Ng8 {[%emt 0:00:58]} 16. Ne2 {[%emt 0:00:05]} Ba7 {[%emt 0:05:40]} 17. c3 {[%emt 0:02:30]} c5 {[%emt 0:03:22]} 18. c4 {[%emt 0:05:37]} Ne7 {[%emt 0:05:18]} 19. cxd5 {[%emt 0:02:31]} exd5 {[%emt 0:06:06]} 20. Nc3 {[%emt 0:00:04]} Qb7 {[%emt 0:01:55]} 21. Qh4 {[%emt 0:06:49]} Rae8 {[%emt 0:14:32]} 22. f5 {[%emt 0:00:34]} b4 {[%emt 0:00:30]} 23. Ne2 {[%emt 0:09:40]} Nxe5 {[%emt 0:02:48]} 24. f6 {[%emt 0:00:30]} Ng8 {[%emt 0:00:07]} 25. fxg7+ {[%emt 0:05:14]} Kxg7 {[%emt 0:00:01]} 26. Ng3 {[%emt 0:00:22]} Qc6 {[%emt 0:04:37]} 27. Bh6+ {[%emt 0:05:14]} Nxh6 {[%emt 0:01:52]} 28. Rf6 {[%emt 0:00:05]} Ng6 {[%emt 0:00:27]} 29. Qg5 {[%emt 0:01:06]} Re5 {[%emt 0:05:41]} 30. Nh5+ {[%emt 0:00:05]} Kg8 {[%emt 0:00:07]} 31. Qxh6 {[%emt 0:00:23]} Rxh5 {[%emt 0:00:04]} 32. Qxf8+ {[%emt 0:00:05]} Kxf8 {[%emt 0:00:47]} 33. Rxc6 {[%emt 0:00:04]} Re5 {[%emt 0:00:02]} 34. Rc7 {[%emt 0:01:00]} Bb6 {[%emt 0:00:28]} 35. Rb7 {[%emt 0:00:07]} Ba5 {[%emt 0:02:04]} 36. Rb5 {[%emt 0:00:37]} bxa3 {[%emt 0:00:16]} 37. bxa3 {[%emt 0:02:44]} Bc3 {[%emt 0:00:18]} 38. Rf1 {[%emt 0:00:04]} d4 {[%emt 0:01:06]} 39. Rb7 {[%emt 0:01:08]} Ne7 {[%emt 0:00:17]} 40. Ra7 {[%emt 0:00:00]} Re3 {[%emt 0:00:00]} 41. Be4 {[%emt 0:10:36]} c4 {[%emt 0:03:41]} 42. Rd1 {[%emt 0:00:06]} Bb2 {[%emt 0:06:51]} 43. Rc7 {[%emt 0:10:56]} cxd3 {[%emt 0:08:24]} 44. Bxd3 {[%emt 0:00:13]} Nd5 {[%emt 0:00:23]} 45. Rb7 {[%emt 0:01:20]} Rxh3+ {[%emt 0:01:18]} 46. Kg1 {[%emt 0:00:34]} Bxa3 {[%emt 0:01:02]} 47. Bc4 {[%emt 0:01:38]} Ne3 {[%emt 0:06:35]} 48. Rxd4 {[%emt 0:01:03]} Nxc4 {[%emt 0:00:04]} 49. Rxc4 {[%emt 0:00:06]} Rb3 {[%emt 0:02:03]} 50. Ra7 {[%emt 0:00:34]} Bd6 {[%emt 0:03:05]} 51. Raxa4 {[%emt 0:00:11]} Rb5 {[%emt 0:00:12]} 52. Kg2 {[%emt 0:00:10]} h5 {[%emt 0:00:25]} 53. gxh5 {[%emt 0:00:54]} Rxh5 {[%emt 0:00:12]} 1/2-1/2